fUST/lending_fUST_20240917
["ID","MTS","AMOUNT","RATE_DAILY","PERIOD"]
[338333271,1726506639045,-411.3603175,0.0001873,2]
[338333272,1726506639055,-411.3603175,0.0001873,2]
[338333273,1726506639065,-411.3603175,0.0001874,2]
[338333274,1726506639075,-411.3603175,0.0001874,2]
[338333275,1726506639085,-411.3603175,0.0001874,2]
[338333276,1726506639095,-411.3603175,0.0001874,2]
[338333277,1726506639105,-411.3603175,0.0001874,2]
[338333278,1726506639116,-225.7542862,0.0001874,2]
[338333279,1726506639128,-411.3603175,0.0001874,2]
[338333280,1726506639139,-411.3603175,0.0001875,2]
[338333281,1726506639148,-411.3603175,0.0001875,2]
[338333282,1726506639157,-411.3603175,0.0001875,2]
[338333283,1726506639167,-1000.0,0.00018759,2]
[338333284,1726506639177,-164.0,0.0001876,2]
[338333285,1726506639187,-3000.0,0.000188,2]
[338333286,1726506639196,-5000.0,0.000188,2]
[338333287,1726506639206,-3000.0,0.0001881,2]
[338333288,1726506639215,-3000.0,0.0001882,2]
[338333289,1726506639226,-3000.0,0.0001883,2]
[338333290,1726506639235,-2187.9571509,0.00018831,2]
[338333291,1726506639245,-3000.0,0.0001884,2]
[338333292,1726506639255,-3000.0,0.0001885,2]
[338333293,1726506639264,-3000.0,0.0001886,2]
[338333294,1726506639274,-47841.3863999,0.0001886,2]
[338333295,1726506639284,-43740.3282314,0.0001886,3]
[338333296,1726506639293,-2429.27935278,0.00018868,2]
[338333297,1726506639302,-992.956464,0.00018868,2]
[338333298,1726506639312,-992.956464,0.00018868,2]
[338333299,1726506639321,-151.0,0.00018868,2]
[338333300,1726506639331,-543.0,0.0001887,2]
[338333301,1726506639340,-3000.0,0.0001887,2]
[338333302,1726506639349,-3000.0,0.0001888,2]
[338333303,1726506639358,-3000.0,0.0001889,2]
[338333304,1726506639369,-189.45981143,0.0001889,2]
[338333305,1726506639386,-3000.0,0.000189,2]
[338333306,1726506639395,-5000.0,0.00018904,2]
[338333308,1726506639405,-1000.0,0.00018909,2]
[338333310,1726506639414,-1000.0,0.00018909,2]
[338333312,1726506639425,-1000.0,0.00018909,2]
[338333313,1726506639434,-1000.0,0.00018909,2]
[338333314,1726506639443,-1000.0,0.00018909,2]
[338333315,1726506639452,-1000.0,0.00018909,2]
[338333317,1726506639462,-1000.0,0.00018909,2]
[338333318,1726506639473,-1000.0,0.00018909,2]
[338333319,1726506639483,-1000.0,0.00018909,2]
[338333320,1726506639497,-1000.0,0.00018909,2]
[338333321,1726506639506,-316.88142378,0.00018909,2]
[338333322,1726506639515,-3000.0,0.0001891,2]
[338333323,1726506639526,-3000.0,0.0001892,2]
[338333324,1726506639538,-47841.3863999,0.0001892,3]
[338333325,1726506639547,-43740.3282314,0.0001892,3]
[338333326,1726506639557,-186.05303845,0.00018921,2]
[338333328,1726506639569,-992.956464,0.00018921,2]
[338333330,1726506639579,-992.956464,0.00018921,2]
[338333331,1726506639588,-151.0,0.00018921,2]
[338333332,1726506639598,-4000.0,0.00018921,2]
[338333333,1726506639607,-4000.0,0.00018921,2]
[338333334,1726506639616,-4000.0,0.00018921,2]
[338333335,1726506639628,-4000.0,0.00018921,2]
[338333337,1726506639638,-4000.0,0.00018921,2]
[338333339,1726506639648,-726.523665,0.00018921,2]
[338333340,1726506639659,-3000.0,0.0001893,2]
[338333341,1726506639669,-151.0,0.0001893,2]
[338333342,1726506639680,-151.0,0.0001893,2]
[338333343,1726506639690,-151.0,0.0001893,2]
[338333344,1726506639700,-269.209936,0.0001893,2]
[338333345,1726506639710,-151.0,0.0001893,2]
[338333346,1726506639720,-151.0,0.0001893,2]
[338333347,1726506639733,-151.0,0.0001893,2]
[338333348,1726506639743,-1776.715909,0.0001893,2]
[338333349,1726506639756,-151.0,0.0001893,2]
[338333350,1726506639768,-1776.715909,0.0001893,2]
[338333351,1726506639779,-151.0,0.0001893,2]
[338333352,1726506639789,-151.693322,0.0001893,2]
[338333353,1726506639799,-36683.8802311,0.00018931,3]
[338333357,1726506640332,500.0,0.000188,60]
[338333358,1726506640662,-11157.5061688,0.00018931,3]
[338333359,1726506640672,-43740.3282314,0.00018931,3]
[338333360,1726506640682,-151.0,0.0001894,2]
[338333361,1726506640691,-151.0,0.0001894,2]
[338333362,1726506640701,-151.0,0.0001894,2]
[338333363,1726506640710,-151.0,0.0001894,2]
[338333364,1726506640719,-151.0,0.0001894,2]
[338333365,1726506640728,-151.0,0.0001894,2]
[338333366,1726506640738,-575.027738,0.0001894,2]
[338333367,1726506640747,-575.027738,0.0001894,2]
[338333368,1726506640757,-151.0,0.0001894,2]
[338333369,1726506640766,-151.0,0.0001894,2]
[338333370,1726506640775,-3000.0,0.0001894,2]
[338333371,1726506640990,-151.0,0.0001894,2]
[338333372,1726506641000,-151.0,0.0001894,2]
[338333373,1726506641010,-151.0,0.0001894,2]
[338333374,1726506641020,-151.0,0.00018941,2]
[338333375,1726506641031,-154.125207,0.00018941,2]
[338333376,1726506641040,-151.0,0.00018941,2]
[338333377,1726506641051,-299.35488,0.00018941,2]
[338333378,1726506641060,-151.0,0.00018941,2]
[338333379,1726506641071,-151.0,0.00018941,2]
[338333380,1726506641082,-152.307517,0.00018941,2]
[338333381,1726506641093,-151.0,0.00018941,2]
[338333382,1726506641103,-151.0,0.00018941,2]
[338333383,1726506641112,-151.0,0.00018941,2]
[338333384,1726506641124,-151.0,0.00018941,2]
[338333385,1726506641134,-224.383354,0.00018941,2]
[338333386,1726506641144,-151.0,0.00018941,2]
[338333387,1726506641153,-151.0,0.00018941,2]
[338333388,1726506641163,-1422.048878,0.00018941,2]
[338333389,1726506641172,-1422.048878,0.00018941,2]
[338333390,1726506641181,-1422.048878,0.00018941,2]
[338333391,1726506641192,-1422.048878,0.00018941,2]
[338333392,1726506641202,-151.0,0.00018941,2]
[338333393,1726506641211,-151.0,0.00018941,2]
[338333394,1726506641221,-151.0,0.00018941,2]
[338333395,1726506641230,-575.027738,0.00018941,2]
[338333396,1726506641240,-575.027738,0.00018941,2]
[338333397,1726506641251,-151.0,0.00018941,2]
[338333398,1726506641260,-151.0,0.00018941,2]
[338333399,1726506641270,-151.0,0.00018941,2]
[338333400,1726506641280,-151.0,0.00018941,2]
[338333401,1726506641290,-151.0,0.00018941,2]
[338333402,1726506641301,-151.0,0.00018941,2]
[338333403,1726506641311,-151.0,0.00018941,2]
[338333404,1726506641322,-151.0,0.00018941,2]
[338333405,1726506641332,-152.87589,0.00018941,2]
[338333406,1726506641341,-1672.693884,0.00018941,2]
[338333407,1726506641351,-1672.693884,0.00018941,2]
[338333408,1726506641361,-151.0,0.00018941,2]
[338333409,1726506641373,-228.608192,0.00018941,2]
[338333410,1726506641383,-228.608192,0.00018941,2]
[338333411,1726506641393,-151.0,0.00018941,2]
[338333412,1726506641403,-171.137768,0.00018941,2]
[338333413,1726506641412,-171.137768,0.00018941,2]
[338333414,1726506641423,-151.0,0.00018941,2]
[338333415,1726506641432,-151.0,0.00018941,2]
[338333416,1726506641442,-151.0,0.00018941,2]
[338333417,1726506641451,-151.0,0.00018941,2]
[338333418,1726506641460,-575.104493,0.00018941,2]
[338333419,1726506641470,-575.104493,0.00018941,2]
[338333420,1726506641479,-992.956464,0.00018941,2]
[338333421,1726506641492,-992.956464,0.00018941,2]
[338333422,1726506641501,-151.0,0.00018941,2]
[338333423,1726506641511,-3000.0,0.0001895,2]
[338333424,1726506641520,-151.0,0.0001896,2]
[338333425,1726506641530,-498.077456,0.0001896,2]
[338333426,1726506641541,-498.077456,0.0001896,2]
[338333427,1726506641550,-3000.0,0.0001896,2]
[338333428,1726506641559,-1006.80621764,0.00018967,2]
[338333429,1726506641571,-153.114606,0.0001897,2]
[338333430,1726506641581,-152.952042,0.0001897,2]
[338333431,1726506641590,-498.077456,0.0001897,2]
[338333432,1726506641600,-498.077456,0.0001897,2]
[338333433,1726506641610,-151.0,0.0001897,2]
[338333434,1726506641619,-216.009582,0.0001897,2]
[338333435,1726506641630,-151.0,0.0001897,2]
[338333436,1726506641640,-3000.0,0.0001897,2]
[338333437,1726506641649,-151.0,0.0001898,2]
[338333438,1726506641659,-3000.0,0.0001898,2]
[338333439,1726506641668,-3000.0,0.0001899,2]
[338333440,1726506641677,-6474.23848473,0.0001899,3]
[338333441,1726506641831,500.0,0.000188,60]
[338333450,1726506642929,-41367.14791517,0.0001899,3]
[338333451,1726506642940,-43740.3282314,0.0001899,3]
[338333452,1726506642950,-992.956464,0.0001899,2]
[338333453,1726506642961,-992.956464,0.0001899,2]
[338333454,1726506642972,-253.269986,0.0001899,2]
[338333455,1726506642982,-621.32556993,0.00018994,2]
[338333456,1726506642993,-1000.0,0.00019,19]
[338333458,1726506643003,-314.08646223,0.00019,5]
[338333675,1726506653166,469.0,0.000188,60]
[338333676,1726506766616,500.0,0.0002,120]
[338333680,1726507066378,280.84,0.00010959,2]
[338333681,1726507155775,160.393823,0.00013699,2]
[338333683,1726507278176,-24900.0,0.00016601,2]
[338333685,1726507394641,150.5,0.0001869,120]
[338333686,1726507395115,150.5,0.0001868,120]
[338333687,1726507395574,198.17,0.0001867,120]
[338333693,1726507559178,179.60724641,0.0001791,41]
[338333695,1726507647376,-173.405749,0.00016669,2]
[338333696,1726507647400,-1.85906637,0.00016843,2]
[338333707,1726507715426,156.02,0.00010959,2]
[338333708,1726507726195,780.12,0.00010959,2]
[338333715,1726507757141,-907.85391577,0.00015,7]
[338333718,1726507767088,-1861.09634037,0.00015,7]
[338333719,1726507768204,-656.05298567,0.00015,7]
[338333720,1726507768227,-171.54668263,0.00016843,2]
[338333721,1726507768250,-300.0,0.00016988,2]
[338333722,1726507768272,-300.0,0.00016988,2]
[338333723,1726507768294,-241.59984539,0.00016989,2]
[338333724,1726507768316,-500.0,0.00016989,2]
[338333725,1726507768337,-500.0,0.00016989,2]
[338333726,1726507768358,-500.0,0.00016989,2]
[338333727,1726507768379,-500.0,0.00016989,2]
[338333728,1726507768400,-1199.40498251,0.00016989,2]
[338333729,1726507768421,-500.0,0.00016989,2]
[338333730,1726507768440,-500.0,0.00016989,2]
[338333731,1726507768461,-500.0,0.00016989,2]
[338333732,1726507768482,-500.0,0.00016989,2]
[338333733,1726507768502,-500.0,0.00016989,2]
[338333734,1726507768522,-229.82589671,0.00016989,2]
[338333735,1726507768542,-500.0,0.00016989,2]
[338333736,1726507768562,-500.0,0.00016989,2]
[338333737,1726507768583,-1199.40498251,0.00016989,2]
[338333738,1726507768602,-500.0,0.00016989,2]
[338333739,1726507768622,-500.0,0.00016989,2]
[338333740,1726507768644,-1199.40498251,0.00016989,2]
[338333741,1726507768666,-500.0,0.00016989,2]
[338333742,1726507768688,-500.0,0.00016989,2]
[338333743,1726507768711,-500.0,0.00016989,2]
[338333744,1726507768733,-169.83040305,0.00016989,2]
[338333745,1726507768756,-500.0,0.00016989,2]
[338333746,1726507768777,-1199.40498251,0.00016989,2]
[338333747,1726507768803,-500.0,0.00016989,2]
[338333748,1726507768825,-500.0,0.00016989,2]
[338333749,1726507768848,-500.0,0.00016989,2]
[338333750,1726507768870,-1199.40498251,0.00016989,2]
[338333751,1726507768894,-624.39860853,0.00016989,2]
[338333752,1726507768916,-500.0,0.00016989,2]
[338333753,1726507768936,-500.0,0.00016989,2]
[338333754,1726507768957,-500.0,0.00016989,2]
[338333755,1726507768981,-1199.40498251,0.00016989,2]
[338333756,1726507769004,-500.0,0.00016989,2]
[338333757,1726507769029,-273.04636843,0.00016989,2]
[338333758,1726507769050,-177.15584514,0.00016989,2]
[338333759,1726507769076,-1199.40498251,0.00016989,2]
[338333760,1726507769097,-500.0,0.00016989,2]
[338333761,1726507769119,-1199.40498251,0.00016989,2]
[338333762,1726507769149,-500.0,0.00016989,2]
[338333763,1726507769176,-500.0,0.00016989,2]
[338333764,1726507769200,-500.0,0.00016989,2]
[338333765,1726507769222,-500.0,0.00016989,2]
[338333766,1726507769245,-1199.40498251,0.00016989,2]
[338333767,1726507769268,-500.0,0.00016989,2]
[338333768,1726507769292,-1199.40498251,0.00016989,2]
[338333769,1726507769316,-500.0,0.00016989,2]
[338333770,1726507769340,-1199.40498251,0.00016989,2]
[338333771,1726507769363,-500.0,0.00016989,2]
[338333772,1726507769386,-1199.40498251,0.00016989,2]
[338333773,1726507769410,-1199.40498251,0.00016989,2]
[338333774,1726507769432,-1199.40498251,0.00016989,2]
[338333775,1726507769454,-500.0,0.00016989,2]
[338333776,1726507769477,-1199.40498251,0.00016989,2]
[338333777,1726507769499,-500.0,0.00016989,2]
[338333778,1726507769520,-500.0,0.00016989,2]
[338333779,1726507769543,-1199.40498251,0.00016989,2]
[338333780,1726507769564,-500.0,0.00016989,2]
[338333781,1726507769586,-1199.40498251,0.00016989,2]
[338333782,1726507769607,-500.0,0.00016989,2]
[338333783,1726507769630,-1199.40498251,0.00016989,2]
[338333784,1726507769652,-500.0,0.00016989,2]
[338333785,1726507769675,-500.0,0.00016989,2]
[338333786,1726507769699,-1199.40498251,0.00016989,2]
[338333787,1726507769728,-500.0,0.00016989,2]
[338333788,1726507769752,-1199.40498251,0.00016989,2]
[338333789,1726507769776,-500.0,0.00016989,2]
[338333790,1726507769799,-500.0,0.00016989,2]
[338333791,1726507769822,-1199.40498251,0.00016989,2]
[338333792,1726507769853,-1199.40498251,0.00016989,2]
[338333793,1726507769876,-500.0,0.00016989,2]
[338333794,1726507769902,-1199.40498251,0.00016989,2]
[338333795,1726507769927,-500.0,0.00016989,2]
[338333796,1726507769952,-1199.40498251,0.00016989,2]
[338333797,1726507769978,-1199.40498251,0.00016989,2]
[338333798,1726507770004,-1199.40498251,0.00016989,2]
[338333799,1726507770028,-1199.40498251,0.00016989,2]
[338333800,1726507770052,-486.37148386,0.00016989,2]
[338333801,1726507770077,-1199.40498251,0.00016989,2]
[338333802,1726507770100,-500.0,0.00016989,2]
[338333803,1726507770124,-1199.40498251,0.00016989,2]
[338333804,1726507770148,-500.0,0.00016989,2]
[338333805,1726507770170,-500.0,0.00016989,2]
[338333806,1726507770193,-500.0,0.00016989,2]
[338333807,1726507770216,-1199.40498251,0.00016989,2]
[338333808,1726507770243,-1199.40498251,0.00016989,2]
[338333809,1726507770266,-1199.40498251,0.00016989,2]
[338333810,1726507770289,-1199.40498251,0.00016989,2]
[338333811,1726507770314,-1199.40498251,0.00016989,2]
[338333812,1726507770337,-1199.40498251,0.00016989,2]
[338333813,1726507770359,-1199.40498251,0.00016989,2]
[338333814,1726507770380,-1199.40498251,0.00016989,2]
[338333815,1726507770401,-1199.40498251,0.00016989,2]
[338333816,1726507770423,-1199.40498251,0.00016989,2]
[338333817,1726507770445,-1199.40498251,0.00016989,2]
[338333818,1726507770468,-1199.40498251,0.00016989,2]
[338333819,1726507770489,-1199.40498251,0.00016989,2]
[338333820,1726507770510,-1199.40498251,0.00016989,2]
[338333821,1726507770536,-1199.40498251,0.00016989,2]
[338333822,1726507770561,-1199.40498251,0.00016989,2]
[338333823,1726507770582,-1199.40498251,0.00016989,2]
[338333824,1726507770603,-1199.40498251,0.00016989,2]
[338333825,1726507770624,-1199.40498251,0.00016989,2]
[338333826,1726507770646,-1199.40498251,0.00016989,2]
[338333827,1726507770668,-1199.40498251,0.00016989,2]
[338333828,1726507770692,-1199.40498251,0.00016989,2]
[338333829,1726507770715,-1199.40498251,0.00016989,2]
[338333830,1726507770740,-1199.40498251,0.00016989,2]
[338333831,1726507770768,-1199.40498251,0.00016989,2]
[338333832,1726507770790,-1199.40498251,0.00016989,2]
[338333833,1726507770813,-1199.40498251,0.00016989,2]
[338333834,1726507770834,-1199.40498251,0.00016989,2]
[338333835,1726507770856,-1199.40498251,0.00016989,2]
[338333836,1726507770877,-1199.40498251,0.00016989,2]
[338333837,1726507771176,-1199.40498251,0.00016989,2]
[338333838,1726507771199,-1199.40498251,0.00016989,2]
[338333839,1726507771221,-1199.40498251,0.00016989,2]
[338333840,1726507771243,-1199.40498251,0.00016989,2]
[338333841,1726507771264,-1199.40498251,0.00016989,2]
[338333842,1726507771285,-1199.40498251,0.00016989,2]
[338333843,1726507771306,-500.0,0.00016989,2]
[338333844,1726507771326,-500.0,0.00016989,2]
[338333845,1726507771347,-500.0,0.00016989,2]
[338333846,1726507771367,-500.0,0.00016989,2]
[338333847,1726507771389,-500.0,0.00016989,2]
[338333848,1726507771413,-112.04419734,0.00016989,2]
[338333849,1726507772125,-1433.73151417,0.00016989,2]
[338333850,1726507772148,-500.0,0.00016989,2]
[338333851,1726507772170,-500.0,0.00016989,2]
[338333852,1726507772192,-1545.77571151,0.00016989,2]
[338333853,1726507772215,-500.0,0.00016989,2]
[338333854,1726507772238,-1545.77571151,0.00016989,2]
[338333855,1726507772259,-500.0,0.00016989,2]
[338333856,1726507772281,-500.0,0.00016989,2]
[338333857,1726507772302,-1545.77571151,0.00016989,2]
[338333858,1726507772322,-500.0,0.00016989,2]
[338333859,1726507772345,-1545.77571151,0.00016989,2]
[338333860,1726507772366,-448.90699884,0.00016989,2]
[338333861,1726507772387,-1545.77571151,0.00016989,2]
[338333862,1726507772408,-500.0,0.00016989,2]
[338333863,1726507772430,-1545.77571151,0.00016989,2]
[338333864,1726507772450,-170.22728459,0.00016989,2]
[338333865,1726507772474,-1545.77571151,0.00016989,2]
[338333866,1726507772495,-1545.77571151,0.00016989,2]
[338333867,1726507772515,-1545.77571151,0.00016989,2]
[338333868,1726507772536,-1545.77571151,0.00016989,2]
[338333869,1726507772557,-1545.77571151,0.00016989,2]
[338333870,1726507772578,-1545.77571151,0.00016989,2]
[338333871,1726507772600,-1545.77571151,0.00016989,2]
[338333872,1726507772622,-1545.77571151,0.00016989,2]
[338333873,1726507772646,-1545.77571151,0.00016989,2]
[338333874,1726507772667,-1545.77571151,0.00016989,2]
[338333875,1726507772690,-1545.77571151,0.00016989,2]
[338333876,1726507772712,-1545.77571151,0.00016989,2]
[338333877,1726507772735,-1545.77571151,0.00016989,2]
[338333878,1726507772759,-1545.77571151,0.00016989,2]
[338333879,1726507772780,-1545.77571151,0.00016989,2]
[338333880,1726507772801,-1545.77571151,0.00016989,2]
[338333881,1726507772822,-1545.77571151,0.00016989,2]
[338333882,1726507772846,-500.0,0.00016989,2]
[338333883,1726507772867,-500.0,0.00016989,2]
[338333884,1726507772888,-275.6262647,0.00016989,2]
[338333885,1726507772907,-500.0,0.00016989,2]
[338333886,1726507772934,-500.0,0.00016989,2]
[338333887,1726507772957,-500.0,0.00016989,2]
[338333888,1726507772980,-500.0,0.00016989,2]
[338333889,1726507773002,-500.0,0.00016989,2]
[338333890,1726507773023,-500.0,0.00016989,2]
[338333891,1726507773044,-500.0,0.00016989,2]
[338333892,1726507773066,-500.0,0.00016989,2]
[338333893,1726507773087,-500.0,0.00016989,2]
[338333894,1726507773109,-500.0,0.00016989,2]
[338333895,1726507773129,-500.0,0.00016989,2]
[338333896,1726507773151,-500.0,0.00016989,2]
[338333897,1726507773175,-500.0,0.00016989,2]
[338333898,1726507773197,-500.0,0.00016989,2]
[338333899,1726507773223,-1545.77571159,0.00016989,2]
[338333900,1726507773248,-500.0,0.00016989,2]
[338333901,1726507773271,-500.0,0.00016989,2]
[338333902,1726507773299,-198007.230949,0.0001699,2]
[338333903,1726507773321,-11300.6777509,0.0001699,2]
[338333904,1726507773342,-450.0,0.00016999,2]
[338333905,1726507773368,-548.6867676,0.00016999,2]
[338333906,1726507773390,-176.83280843,0.00016999,2]
[338333907,1726507773411,-406.05706753,0.00016999,2]
[338333908,1726507773432,-500.0,0.00016999,2]
[338333909,1726507773454,-397.39077806,0.00016999,2]
[338333910,1726507773478,-10000.0,0.00017,10]
[338333911,1726507773499,-500.0,0.00017,10]
[338333912,1726507773521,-500.0,0.00017,10]
[338333913,1726507773542,-500.0,0.00017,10]
[338333914,1726507773562,-828.68778002,0.00017,10]
[338333915,1726507773584,-500.0,0.00017,10]
[338333916,1726507773607,-500.0,0.00017,10]
[338333917,1726507773628,-505.41929368,0.00017,10]
[338333918,1726507773652,-500.0,0.00017,10]
[338333919,1726507773673,-500.0,0.00017,10]
[338333920,1726507773694,-1500.0,0.00017,10]
[338333921,1726507773715,-685.37777671,0.00017,10]
[338333922,1726507773737,-500.0,0.00017,10]
[338333923,1726507773762,-500.0,0.00017,10]
[338333924,1726507773784,-1500.0,0.00017,10]
[338333925,1726507773806,-1500.0,0.00017,10]
[338333926,1726507773827,-1500.0,0.00017,10]
[338333927,1726507773850,-1500.0,0.00017,10]
[338333928,1726507773872,-1500.0,0.00017,10]
[338333929,1726507773894,-1500.0,0.00017,10]
[338333930,1726507773914,-1500.0,0.00017,10]
[338333931,1726507773936,-1500.0,0.00017,10]
[338333932,1726507773958,-1500.0,0.00017,10]
[338333933,1726507773979,-1500.0,0.00017,10]
[338333934,1726507774000,-1500.0,0.00017,10]
[338333935,1726507774021,-1500.0,0.00017,10]
[338333936,1726507774041,-2467.1604656,0.00017,10]
[338333937,1726507774061,-500.0,0.00017,10]
[338333938,1726507774082,-1400.0,0.00017,10]
[338333939,1726507774102,-702.22332101,0.00017,10]
[338333940,1726507774125,-1400.0,0.00017,10]
[338333941,1726507774145,-1400.0,0.00017,10]
[338333942,1726507774165,-1400.0,0.00017,10]
[338333943,1726507774187,-1400.0,0.00017,10]
[338333944,1726507774209,-500.0,0.00017,10]
[338333945,1726507774229,-500.0,0.00017,10]
[338333946,1726507774250,-636.22595101,0.00017,10]
[338333947,1726507774271,-1400.0,0.00017,10]
[338333948,1726507774297,-500.0,0.00017,10]
[338333949,1726507774318,-1400.0,0.00017,10]
[338333950,1726507774340,-500.0,0.00017,10]
[338333951,1726507774361,-1400.0,0.00017,10]
[338333952,1726507774381,-1400.0,0.00017,10]
[338333953,1726507774403,-1400.0,0.00017,10]
[338333954,1726507774424,-500.0,0.00017,10]
[338333955,1726507774446,-1400.0,0.00017,10]
[338333956,1726507774469,-500.0,0.00017,10]
[338333957,1726507774490,-500.0,0.00017,10]
[338333958,1726507774512,-1400.0,0.00017,10]
[338333959,1726507774533,-500.0,0.00017,10]
[338333960,1726507774554,-1400.0,0.00017,10]
[338333961,1726507774576,-500.0,0.00017,10]
[338333962,1726507774597,-1746.97923085,0.00017,10]
[338333963,1726507774618,-500.0,0.00017,10]
[338333964,1726507774639,-3500.0,0.00017,10]
[338333965,1726507774659,-624.35685217,0.00017,10]
[338333966,1726507774679,-3500.0,0.00017,10]
[338333967,1726507774700,-3500.0,0.00017,10]
[338333968,1726507774720,-3500.0,0.00017,10]
[338333969,1726507774741,-3500.0,0.00017,10]
[338333970,1726507774765,-3500.0,0.00017,10]
[338333971,1726507774786,-500.0,0.00017,10]
[338333972,1726507774808,-3500.0,0.00017,10]
[338333973,1726507775057,-500.0,0.00017,10]
[338333974,1726507775083,-3500.0,0.00017,10]
[338333975,1726507775107,-500.0,0.00017,10]
[338333976,1726507775128,-3500.0,0.00017,10]
[338333977,1726507775151,-667.68830881,0.00017,10]
[338333978,1726507775173,-3500.0,0.00017,10]
[338333979,1726507775195,-3500.0,0.00017,10]
[338333980,1726507775215,-3500.0,0.00017,10]
[338333981,1726507775236,-3500.0,0.00017,10]
[338333982,1726507775257,-4859.32678471,0.00017,10]
[338333983,1726507775278,-2000.0,0.00017,10]
[338333984,1726507775298,-2000.0,0.00017,10]
[338333985,1726507775319,-2000.0,0.00017,10]
[338333986,1726507775342,-2000.0,0.00017,10]
[338333987,1726507775362,-2000.0,0.00017,10]
[338333988,1726507775383,-2000.0,0.00017,10]
[338333989,1726507775404,-2000.0,0.00017,10]
[338333990,1726507775424,-2000.0,0.00017,10]
[338333991,1726507775445,-2000.0,0.00017,10]
[338333992,1726507775465,-2000.0,0.00017,10]
[338333993,1726507775487,-2000.0,0.00017,10]
[338333994,1726507775508,-2000.0,0.00017,10]
[338333995,1726507775528,-2000.0,0.00017,10]
[338333996,1726507775549,-2676.86781464,0.00017,10]
[338333997,1726507775573,-173.405749,0.00017017,2]
[338333998,1726507775596,-173.405749,0.00017191,2]
[338333999,1726507775618,-1080.96761449,0.00017228,2]
[338334000,1726507776155,500.0,0.00016989,2]
[338334001,1726507776182,600.0,0.00016989,2]
[338334002,1726507776731,500.0,0.00016989,2]
[338334003,1726507776766,21.42617132,0.00016989,2]
[338334004,1726507802350,168.344953,0.00013699,2]
[338334099,1726507832405,-3290.98143092,0.00016434,2]
[338334117,1726507836110,157.0,0.00019178,120]
[338334132,1726507838273,-21609.01856908,0.00016434,2]
[338334133,1726507838284,-300.0,0.00016988,2]
[338334134,1726507838294,-300.0,0.00016988,2]
[338334135,1726507838304,-173.405749,0.00017364,2]
[338334136,1726507838314,-2732.99275538,0.00017391,2]
[338334137,1726507838323,-216.54522209,0.0001749,2]
[338334138,1726507838332,-500.0,0.0001749,2]
[338334139,1726507838342,-363.67181871,0.0001749,2]
[338334140,1726507838352,-594.15368108,0.0001749,2]
[338334141,1726507838362,-500.0,0.0001749,2]
[338334142,1726507838372,-500.0,0.0001749,2]
[338334143,1726507838382,-500.0,0.0001749,2]
[338334144,1726507838391,-500.0,0.0001749,2]
[338334145,1726507838401,-500.0,0.0001749,2]
[338334146,1726507838410,-500.0,0.0001749,2]
[338334147,1726507838420,-500.0,0.0001749,2]
[338334148,1726507838430,-500.0,0.0001749,2]
[338334149,1726507838439,-500.0,0.0001749,2]
[338334150,1726507838449,-598.63714838,0.0001749,2]
[338334151,1726507838460,-500.0,0.0001749,2]
[338334152,1726507838470,-500.0,0.0001749,2]
[338334153,1726507838480,-500.0,0.0001749,2]
[338334155,1726507838490,-385.33376349,0.0001749,2]
[338334157,1726507838499,-500.0,0.0001749,2]
[338334158,1726507838509,-500.0,0.0001749,2]
[338334159,1726507838519,-500.0,0.0001749,2]
[338334160,1726507838528,-330.87159866,0.0001749,2]
[338334161,1726507838538,-500.0,0.0001749,2]
[338334162,1726507838548,-500.0,0.0001749,2]